fUSD/lending_fUSD_20240803
["ID","MTS","AMOUNT","RATE_DAILY","PERIOD"]
[334030741,1722694244732,-11047.60140179,0.0002498,7]
[334030742,1722694244747,-969.65529697,0.0002498,7]
[334030837,1722694245723,-2875.82477649,0.0002498,7]
[334030886,1722694246211,-1597.78426463,0.0002498,7]
[334030888,1722694246223,-337.94,0.0002498,7]
[334030890,1722694246234,-2724.565046,0.0002498,7]
[334030893,1722694246253,-500.0,0.00024657,9]
[334030895,1722694246263,-3472.09929284,0.0002498,7]
[334030897,1722694246274,-2080.68,0.0002498,7]
[334030899,1722694246285,-955.62140526,0.0002498,7]
[334030926,1722694246527,-1256.4439005,0.0001331,2]
[334030928,1722694246538,-915.89545996,0.0002038,2]
[334030930,1722694246550,-335.451,0.0002038,2]
[334030933,1722694246575,-1902.3193438,0.0002038,2]
[334030941,1722694246714,-512.33768379,0.0002038,2]
[334030943,1722694246727,-343.25157186,0.0002038,2]
[334030946,1722694246739,-859.59283247,0.0002038,2]
[334031182,1722695107691,4672.40889111,0.00011,2]
[334031185,1722695234262,150.5,0.0001789,120]
[334031186,1722695234748,150.5,0.0001788,120]
[334031187,1722695235222,150.5,0.0001787,120]
[334031189,1722695296804,-722.338587,0.00010845,2]
[334031190,1722695315091,-404.96131987,0.000109,2]
[334031191,1722695315112,-216.31395805,0.000109,2]
[334031192,1722695315134,-163.86633382,0.000109,2]
[334031193,1722695315155,-200.0,0.000109,2]
[334031194,1722695315176,-200.0,0.000109,2]
[334031195,1722695329887,-179.02196653,0.00010997,2]
[334031196,1722695329911,-150.0,0.00010999,2]
[334031205,1722695341519,180.0,0.00010999,2]
[334031206,1722695342589,4.34896988,0.00010999,2]
[334031207,1722695354793,-10000.0,0.00010845,2]
[334031208,1722695362594,-10000.0,0.00010845,2]
[334031209,1722695367245,-10000.0,0.00010845,2]
[334031210,1722695371803,-10000.0,0.00010845,2]
[334031211,1722695376079,-10000.0,0.00010845,2]
[334031212,1722695380657,-10000.0,0.00010845,2]
[334031213,1722695385526,-10000.0,0.00010845,2]
[334031214,1722695389184,-10000.0,0.00010845,2]
[334031215,1722695393156,-10000.0,0.00010845,2]
[334031216,1722695397887,-10000.0,0.00010845,2]
[334031217,1722695401996,-10000.0,0.00010845,2]
[334031218,1722695406825,-10000.0,0.00010845,2]
[334031219,1722695411372,-10000.0,0.00010845,2]
[334031220,1722695416193,-10000.0,0.00010845,2]
[334031221,1722695421151,-8145.65904328,0.00010845,2]
[334031222,1722695421175,-1854.34095672,0.00010845,2]
[334031223,1722695428526,-10000.0,0.00010845,2]
[334031238,1722695432460,-4228.0863352,0.00010845,2]
[334031239,1722695432472,-943.09082566,0.00010845,2]
[334031240,1722695432483,-1085.42033485,0.00010845,2]
[334031241,1722695432607,-494.0133311,0.00010845,2]
[334031242,1722695432619,-65071.19628474,0.00010845,2]
[334031243,1722695432629,-262.18128558,0.00010845,2]
[334031244,1722695432639,-5768.09486242,0.00010845,2]
[334031245,1722695432650,-3493.91040576,0.00010845,2]
[334031246,1722695432660,-250.0,0.00010845,2]
[334031247,1722695432669,-1284.22835153,0.00010845,2]
[334031248,1722695432679,-1009.17115723,0.00010845,2]
[334031249,1722695432688,-227.60153513,0.00010845,2]
[334031250,1722695432697,-155.0,0.00010845,2]
[334031251,1722695432707,-961.8087359,0.00010845,2]
[334031252,1722695432716,-216.31395803,0.000109,2]
[334031253,1722695432725,-179.02196653,0.00010997,2]
[334031254,1722695432734,-2506.03659701,0.00011,2]
[334031255,1722695432746,-468654.28291069,0.00011,2]
[334031256,1722695432757,-220676.20491817,0.00011,2]
[334031257,1722695432771,-658.25,0.00011,2]
[334031258,1722695432782,-460.43123519,0.00011,2]
[334031259,1722695432793,-301.2900896,0.00011,2]
[334031260,1722695432804,-1910.04659137,0.00011,2]
[334031261,1722695432845,-7823.73689433,0.00011,2]
[334031262,1722695432856,-2109.43741355,0.00011,2]
[334031266,1722695438360,-18716.99087636,0.00011,2]
[334031267,1722695438561,-355.55693075,0.00011,2]
[334031268,1722695438572,-1251.34130064,0.00011,2]
[334031269,1722695438589,-729.82228752,0.00011,2]
[334031270,1722695438955,-289.4002629,0.00011,2]
[334031273,1722695438966,-1009.91881608,0.00011,2]
[334031275,1722695438978,-6343.80348218,0.00011,2]
[334031277,1722695438990,-609.04084905,0.00011,2]
[334031279,1722695439001,-2084.0327375,0.00011,2]
[334031281,1722695439012,-2158.98320904,0.00011,2]
[334031284,1722695439030,-4552.91952645,0.00011,2]
[334031286,1722695439041,-281.55,0.00011,2]
[334031288,1722695439053,-3253.18471337,0.00011,2]
[334031291,1722695439068,-2183.16426548,0.00011,2]
[334031293,1722695439080,-3005.77108988,0.00011,2]
[334031426,1722695440490,-2476.92546041,0.00011,2]
[334031430,1722695440518,-3233.66704584,0.00011,2]
[334031444,1722695440642,-939.63137312,0.00011,2]
[334031471,1722695440886,-27627.60837637,0.00011,2]
[334031473,1722695440897,-630.25841339,0.00011,2]
[334031487,1722695441018,-1572.05235452,0.00011,2]
[334031489,1722695441031,-17948.84034905,0.00011,2]
[334031492,1722695441043,-502.36071293,0.00011,2]
[334031494,1722695441058,-902.16144431,0.00011,2]
[334031497,1722695441070,-2954.1894928,0.00011,2]
[334031499,1722695441083,-505.53116172,0.00011,2]
[334031501,1722695441095,-662.70634916,0.00011,2]
[334031504,1722695441106,-441.48538942,0.00011,2]
[334031506,1722695441117,-2141.25728077,0.00011,2]
[334031508,1722695441128,-2191.28868631,0.00011,2]
[334031510,1722695441140,-4950.26488488,0.00011,2]
[334031721,1722695443435,-75916.14931316,0.00011,2]
[334031723,1722695443446,-250.0,0.00011,2]
[334031725,1722695443456,-64789.49179742,0.00011,2]
[334031727,1722695443465,-486.81,0.00011501,2]
[334031729,1722695443475,-550.0,0.00012,2]
[334031730,1722695443484,-208.67051964,0.000124,2]
[334031731,1722695443493,-216.31395803,0.00012439,2]
[334031732,1722695443502,-36091.03243259,0.00012439,2]
[334031733,1722695443513,-8264.97603201,0.00012439,2]
[334031734,1722695443525,-1043.91,0.00012439,2]
[334031735,1722695443536,-4085.41056951,0.00012439,2]
[334031736,1722695443556,-1942.04386883,0.00012439,2]
[334031741,1722695444897,-397.03782546,0.00012439,2]
[334031742,1722695444908,-475.67259041,0.00012439,2]
[334031743,1722695444920,-184645.58398119,0.00012439,2]
[334031744,1722695444929,-191.7832318,0.00012539,2]
[334031745,1722695444938,-500.0,0.00012539,2]
[334031746,1722695444948,-500.0,0.00012539,2]
[334031747,1722695444965,-243.17779696,0.00012539,2]
[334031748,1722695444974,-500.0,0.00012539,2]
[334031749,1722695444983,-500.0,0.00012539,2]
[334031750,1722695444992,-500.0,0.00012539,2]
[334031751,1722695445001,-500.0,0.00012539,2]
[334031752,1722695445011,-499.99,0.00012539,2]
[334031753,1722695445020,-184621.69200485,0.0001254,2]
[334031754,1722695445031,-73623.13718102,0.0001254,2]
[334031755,1722695445045,-2672.93346613,0.0001254,2]
[334031760,1722695446632,-2073.29355406,0.0001254,2]
[334031761,1722695446649,-624.09688597,0.0001254,2]
[334031762,1722695446762,-3566.85013468,0.0001254,2]
[334031763,1722695446798,-7518.8361788,0.0001254,2]
[334031764,1722695446922,-743.13090206,0.0001254,2]
[334031765,1722695446936,-400.61843616,0.0001254,2]
[334031779,1722695661438,171.02,0.00013374,30]
[334031784,1722696054751,307.11100125,0.00017898,40]
[334031990,1722696631660,-156.1607406,0.00011004,2]
[334031992,1722696631670,-4248.18028915,0.00011105,2]
[334031993,1722696631747,-11221.810816,0.00011105,2]
[334031994,1722696631758,-3277.5336,0.00011289,2]
[334031995,1722696631768,-601.8,0.00011403,2]
[334031996,1722696631777,-1298.77,0.00011686,2]
[334031997,1722696631788,-3290.05,0.0001171,2]
[334031998,1722696631798,-200.0,0.00011802,2]
[334031999,1722696631807,-8761.46,0.00011819,2]
[334032000,1722696631817,-373.81,0.00011836,2]
[334032001,1722696631826,-966.65,0.00011893,2]
[334032002,1722696631836,-5024.84021549,0.00011896,2]
[334032003,1722696631845,-150.99,0.00011959,2]
[334032004,1722696631855,-357.07,0.00011959,2]
[334032005,1722696631865,-179.99,0.00011959,2]
[334032006,1722696631874,-387.79038477,0.00012102,2]
[334032007,1722696631883,-4791.24375501,0.0001236,2]
[334032008,1722696631893,-150.0,0.00012411,2]
[334032009,1722696631902,-163.82794686,0.00012439,2]
[334032010,1722696631911,-668.04078612,0.00012439,2]
[334032011,1722696631921,-4251.2791,0.00012439,2]
[334032012,1722696631931,-259.6572,0.00012439,2]
[334032013,1722696631940,-3415.2035,0.00012439,2]
[334032014,1722696631950,-196.9278947,0.0001246,2]
[334032015,1722696631959,-158.93,0.00012468,2]
[334032016,1722696631969,-150.0,0.00012539,2]
[334032017,1722696631978,-415210.61417963,0.0001254,2]
[334032018,1722696631987,-299.99,0.0001254,2]
[334032019,1722696631999,-157.11739927,0.0001254,2]
[334032020,1722696632011,-5735.90900312,0.0001254,2]
[334032021,1722696632070,-418.9295176,0.0001254,2]
[334032022,1722696632082,-1312.15,0.0001254,2]
[334032023,1722696632094,-586.84408001,0.0001254,2]
[334032024,1722696632104,-1153.15591999,0.0001254,2]
[334032025,1722696632145,-28.98733001,0.0001254,2]
[334032027,1722696632155,-200.0,0.00012573,2]
[334032028,1722696632164,-323.96905592,0.00012596,2]
[334032029,1722696632174,-499.99,0.00012818,2]
[334032030,1722696632184,-4251.39295153,0.00012995,2]
[334032057,1722696637708,-435.02704847,0.00012995,2]
[334032058,1722696637723,-5314.37179623,0.00013069,2]
[334032228,1722696639760,-461.75544879,0.00013069,2]
[334032236,1722696639833,-3456.77551593,0.00013069,2]
[334032256,1722696640028,-344.62556429,0.00013069,2]
[334032258,1722696640041,-1554.22444498,0.00013069,2]
[334032261,1722696640054,-301.9,0.00013069,2]
[334032266,1722696640099,-12466.34722978,0.00013069,2]
[334032267,1722696640109,-961.52458604,0.00013145,2]
[334032269,1722696640118,-112.92818418,0.00013165,2]
[334032518,1722696642677,-1909.90824921,0.00011959,2]
[334032667,1722696644184,-728.22246321,0.00011959,2]
[334032670,1722696644199,-2153.11304259,0.00011959,2]
[334032672,1722696644209,-250.0,0.00013209,2]
[334032674,1722696644218,-1000.0,0.00013251,2]
[334032676,1722696644228,-360.0,0.00013264,2]
[334032678,1722696644237,-25301.89520735,0.00013283,2]
[334032680,1722696644247,-171.43,0.00013357,2]
[334032682,1722696644258,-1112.40214539,0.00013398,2]
[334032683,1722696644267,-218.72259173,0.00013483,2]
[334032685,1722696644276,-263.85468147,0.00013489,2]
[334032687,1722696644286,-155.0,0.00013648,2]
[334032689,1722696644295,-601.8,0.00013667,2]
[334032691,1722696644305,-14246.99233207,0.00013799,2]
[334032693,1722696644317,-21450.34021177,0.00013799,2]
[334032695,1722696644327,-10525.57010213,0.00013799,2]
[334032697,1722696644337,-10525.57010213,0.00013799,2]
[334032699,1722696644347,-668.04078611,0.00013824,2]
[334032701,1722696644356,-5399.26968187,0.00013889,2]
[334032703,1722696644366,-234.41249741,0.00013899,2]
[334032705,1722696644375,-163.92,0.00013973,2]
[334032707,1722696644385,-185.67,0.00013973,2]
[334032709,1722696644395,-600.0,0.00014,2]
[334032711,1722696644405,-163.82794683,0.00014219,2]
[334032713,1722696644415,-4473.05915228,0.00014261,2]
[334032714,1722696644425,-3401.38185264,0.00014261,2]
[334032716,1722696644436,-1404.85068933,0.00014451,2]
[334032718,1722696644446,-449.13043184,0.00014451,2]
[334032720,1722696644456,-3976.46597667,0.00014519,2]
[334032722,1722696644466,-3118.19667245,0.00014519,2]
[334032724,1722696644476,-1055.51932226,0.00014579,2]
[334032726,1722696644486,-155.0,0.00014776,2]
[334032728,1722696644495,-2144.08330696,0.00014896,2]
[334032730,1722696644507,-1000.0,0.00014907,2]
[334032732,1722696644517,-360.0,0.00014922,2]
[334032734,1722696644528,-668.04078611,0.00015208,2]
[334032736,1722696644538,-323.96905588,0.00015667,2]
[334032738,1722696644549,-601.8,0.00015931,2]
[334032739,1722696644559,-1836.69666447,0.00015999,2]
[334032740,1722696644569,-163.82794683,0.00015999,2]
[334032741,1722696644579,-200.0,0.00016014,2]
[334032742,1722696644589,-159.47000849,0.00016232,2]
[334032743,1722696644599,-1297.13015026,0.00016232,2]
[334032744,1722696644609,-719.34566812,0.00016358,2]
[334032745,1722696644620,-1274.49304289,0.00016358,2]
[334032746,1722696644629,-14413.0,0.00016378,2]
[334032747,1722696644639,-1183.97736117,0.00016425,2]
[334032748,1722696644649,-1622.19894296,0.0001647,2]
[334032749,1722696644659,-1000.0,0.00016564,2]
[334032750,1722696644668,-360.0,0.0001658,2]
[334032751,1722696644679,-668.04078611,0.00016593,2]
[334032752,1722696644689,-179.02196653,0.00016708,2]
[334032753,1722696644700,-183023.74429059,0.00016711,2]
[334032755,1722696644710,-1138.09658459,0.00016799,2]
[334032757,1722696644724,-1073.73542888,0.00016855,2]
[334032759,1722696644734,-1175.8459067,0.00016896,2]
[334032761,1722696644744,-600.23497476,0.00016949,2]
[334032763,1722696644758,-722.78328973,0.00016949,2]
[334032765,1722696644768,-298.38594994,0.00016949,2]
[334032767,1722696644779,-531.81153519,0.0001695,2]
[334032769,1722696644789,-531.81153519,0.0001695,2]
[334032771,1722696644801,-349.40332406,0.00016953,2]
[334032773,1722696644811,-240.82590196,0.00016953,2]
[334032775,1722696644821,-349.40332406,0.00016953,2]
[334032778,1722696644832,-155.0,0.00016999,2]
[334032780,1722696644842,-231.82409563,0.00016999,2]
[334032782,1722696644852,-653.07757773,0.00016999,2]
[334032783,1722696644861,-155.0,0.00017004,2]
[334032785,1722696644871,-155.0,0.00017004,2]
[334032787,1722696644881,-205.40364118,0.00017004,2]
[334032790,1722696644891,-155.0,0.00017004,2]
[334032791,1722696644901,-476.52703085,0.00017004,2]
[334032793,1722696644911,-155.30539952,0.00017004,2]
[334032796,1722696644921,-155.0,0.00017259,2]
[334032798,1722696644930,-155.0,0.00017259,2]
[334032799,1722696644940,-484.76607857,0.00017259,2]
[334032801,1722696644950,-628.09541039,0.00017259,2]
[334032804,1722696644960,-210.87847398,0.0001738,2]
[334032805,1722696644970,-205.60886598,0.0001738,2]
[334032808,1722696644980,-155.0,0.0001738,2]
[334032810,1722696644989,-365.42577775,0.0001738,2]
[334032812,1722696644999,-164.23718751,0.0001738,2]
[334032814,1722696645011,-162.55720152,0.0001738,2]
[334032815,1722696645020,-155.0,0.0001738,2]
[334032818,1722696645030,-203.23601745,0.0001738,2]
[334032820,1722696645040,-686.40870172,0.0001738,2]
[334032822,1722696645050,-245.39766554,0.0001738,2]
[334032824,1722696645060,-155.0,0.0001738,2]
[334032826,1722696645070,-155.0,0.00017399,2]
[334032828,1722696645081,-202.71790408,0.00017399,2]
[334032830,1722696645091,-164.25896098,0.00017399,2]
[334032832,1722696645101,-357.14442617,0.00017399,2]
[334032834,1722696645111,-155.0,0.00017399,2]
[334032836,1722696645122,-253.15546124,0.00017399,2]
[334032838,1722696645131,-243.04057273,0.00017399,2]
[334032840,1722696645141,-400.0,0.00017399,2]
[334032842,1722696645152,-602.0,0.000174,2]
[334032844,1722696645163,-439.70755762,0.00017458,2]
[334032846,1722696645173,-265.21397656,0.00017533,2]
[334032848,1722696645184,-155.0,0.00017533,2]
[334032851,1722696645194,-155.0,0.00017533,2]
[334032852,1722696645205,-519.69271657,0.00017533,2]
[334032853,1722696645215,-265.21397656,0.00017533,2]
[334032854,1722696645225,-205.75981917,0.00017533,2]
[334032855,1722696645235,-1182.14326,0.0001754,2]
[334032856,1722696645246,-236.13758284,0.00017608,2]
[334032857,1722696645258,-270.32721242,0.00017608,2]
[334032858,1722696645268,-297.22909311,0.00017608,2]
[334032859,1722696645278,-236.13758284,0.00017608,2]
[334032860,1722696645288,-188.63628821,0.00017636,2]
[334032862,1722696645298,-347.37102947,0.00017636,2]
[334032864,1722696645308,-142.44146342,0.00017739,2]
[334032867,1722696645322,-216.64132634,0.00017739,2]
[334032869,1722696645332,-163.82794683,0.00017779,2]
[334032871,1722696645342,-155.0,0.00017782,2]
[334032873,1722696645352,-155.0,0.00017782,2]
[334032875,1722696645362,-363.85697976,0.00017782,2]
[334032877,1722696645372,-452.96374707,0.00017807,2]
[334032879,1722696645385,-1.23044518,0.00017807,2]
[334032881,1722696645395,-276.3124384,0.00017807,2]
[334032883,1722696645405,-200.0,0.0001789,2]
[334032885,1722696645416,-165.36567453,0.00017898,2]
[334032887,1722696645426,-1632.6662692,0.00017898,2]
[334032889,1722696645436,-1124.42517269,0.00017898,2]
[334032891,1722696645449,-159.53243032,0.00017898,2]
[334032893,1722696645459,-227.60153513,0.00017898,2]
[334032895,1722696645468,-155.13203849,0.00017898,2]
[334032897,1722696645478,-169.39479282,0.00017898,2]
[334032899,1722696645490,-571.19856418,0.00017898,2]
[334032901,1722696645503,-666.41,0.00017898,2]
[334032923,1722696646057,-590.59,0.00013132,2]
[334032924,1722696646069,-1793.67329853,0.00013132,2]
[334032925,1722696646078,-7.25937705,0.00013145,2]
[334032926,1722696646090,-954.26520899,0.00013145,2]
[334032927,1722696646100,-380.01075921,0.00013579,2]
[334032928,1722696646110,-310.0,0.00015751,2]
[334032929,1722696646120,-3079.46952702,0.00016799,2]
[334032930,1722696646130,-1073.73542888,0.00016855,2]
[334032931,1722696646140,-649.29247659,0.00016952,2]
[334032932,1722696646150,-439.70755762,0.00017399,2]
[334032933,1722696646160,-309.01921538,0.00017533,2]
[334032934,1722696646169,-528.47533138,0.00017636,2]
[334032935,1722696646179,-12053.31665714,0.00017898,2]
[334032936,1722696646189,-634.19525011,0.00017898,15]
[334032937,1722696646199,-668.04078611,0.00017977,2]
[334032938,1722696646209,-200.0,0.00018069,2]
[334032939,1722696646219,-601.8,0.00018195,2]
[334032940,1722696646229,-1000.0,0.0001822,2]
[334032941,1722696646239,-360.0,0.00018238,2]
[334032942,1722696646250,-200.0,0.0001825,2]
[334032943,1722696646267,-200.0,0.00018432,2]
[334032944,1722696646278,-323.96905588,0.00018738,2]
[334032945,1722696646288,-668.04078611,0.00019362,2]
[334032946,1722696646298,-163.82794683,0.0001956,2]
[334032947,1722696646308,-1000.0,0.00019876,2]
[334032948,1722696646318,-360.0,0.00019896,2]
[334032949,1722696646328,-6288.50435063,0.0002,2]
[334032950,1722696646338,-206.8346331,0.0002,2]
[334032951,1722696646347,-366.9755387,0.0002,2]
[334032952,1722696646357,-3816.50869709,0.00020092,2]
[334032953,1722696646368,-169.06995273,0.00020191,2]
[334032954,1722696646378,-2023.34906436,0.00020222,2]
[334032955,1722696646388,-188.14553249,0.0002038,2]
[334032956,1722696646398,-572.71657932,0.0002038,2]
[334032957,1722696646408,-185.67,0.00020447,2]
[334032958,1722696646418,-601.8,0.00020459,2]
[334032959,1722696646428,-236.40881395,0.00020588,2]
[334032960,1722696646439,-668.04078611,0.00020746,2]
[334032961,1722696646449,-488.80070484,0.00020821,2]
[334032962,1722696646460,-3241.19657029,0.00021,2]
[334032963,1722696646470,-500.0,0.00021164,2]
[334032964,1722696646481,-163.82794683,0.0002134,2]
[334032965,1722696646491,-448.137,0.00021397,2]
[334032966,1722696646502,-279.0,0.00021397,2]
[334032967,1722696646519,-247.479,0.00021397,2]
[334032968,1722696646530,-323.96905588,0.00021809,2]
[334032969,1722696646540,-2000.0,0.000219,2]
[334032970,1722696646550,-2000.0,0.00021917,2]
[334032971,1722696646561,-150.0,0.00021918,2]
[334032972,1722696646571,-728.47,0.00021918,2]
[334032973,1722696646580,-1187.88093752,0.00022,2]
[334032974,1722696646592,-4139.22179978,0.00022,2]
[334032975,1722696647315,-161551.43762388,0.00022,2]
[334032976,1722696647324,-668.04078611,0.00022131,2]
[334032977,1722696647334,-500.0,0.0002226,2]
[334032978,1722696647344,-150.0,0.00022495,2]
[334032979,1722696647354,-1182.14326,0.0002254,2]
[334032980,1722696647363,-601.8,0.00022723,2]
[334032981,1722696647373,-112748.17584508,0.00023,2]
[334032982,1722696647383,-150.0,0.00023071,2]
[334032983,1722696647392,-163.82794683,0.0002312,2]
[334032984,1722696647401,-180.0,0.00023205,2]
[334032985,1722696647411,-500.0,0.00023356,2]
[334032986,1722696647421,-484.32,0.0002337,2]
[334032987,1722696647431,-849.35,0.0002337,2]
[334032988,1722696647441,-668.04078611,0.00023515,2]
[334032989,1722696647450,-1930.20669701,0.00023555,2]
[334032990,1722696647460,-150.0,0.00023648,2]
[334032991,1722696647470,-356.15,0.00023794,2]
[334032992,1722696647479,-150.0,0.00023794,2]
[334032993,1722696647489,-855.77,0.00023794,2]
[334032994,1722696647498,-300.0,0.00023794,2]
[334032995,1722696647510,-1668.58,0.00024168,2]
[334032996,1722696647525,-167.8,0.00024168,2]
[334032997,1722696647535,-150.0,0.00024225,2]
[334032998,1722696647544,-845.0,0.00024259,2]
[334032999,1722696647554,-1000.0,0.00024418,2]
[334033000,1722696647564,-500.0,0.00024452,2]
[334033001,1722696647573,-845.0,0.00024509,2]
[334033002,1722696647583,-10000.0,0.00024557,2]
[334033003,1722696647592,-53761.65134742,0.00024656,21]
[334033004,1722696647603,-165.18577277,0.00024657,9]
[334033005,1722696647612,-500.0,0.00024657,9]
[334033006,1722696647621,-300.0,0.00024657,9]
[334033007,1722696647630,-500.0,0.00024657,9]
[334033008,1722696647640,-500.0,0.00024657,9]
[334033009,1722696647649,-500.0,0.00024657,9]
[334033010,1722696647659,-500.0,0.00024657,9]
[334033011,1722696647669,-500.0,0.00024657,9]
[334033012,1722696647678,-500.0,0.00024657,9]
[334033013,1722696647687,-506.84219967,0.00024657,9]
[334033014,1722696647697,-508.2364729,0.00024657,9]
[334033015,1722696647707,-506.60015707,0.00024657,9]
[334033016,1722696647720,-500.0,0.00024657,9]
[334033017,1722696647730,-507.90841669,0.00024657,9]
[334033018,1722696647739,-500.0,0.00024657,9]
[334033019,1722696647750,-500.0,0.00024657,9]
[334033020,1722696647770,-500.0,0.00024657,9]
[334033021,1722696647780,-334.52,0.00024657,9]
[334033022,1722696647791,-500.0,0.00024657,9]
[334033023,1722696647800,-500.0,0.00024657,9]
[334033024,1722696647810,-500.0,0.00024657,9]
[334033025,1722696647819,-271.58,0.00024657,9]
[334033026,1722696647829,-500.0,0.00024657,9]
[334033027,1722696647838,-500.0,0.00024657,9]
[334033028,1722696647848,-495.26,0.00024657,9]
[334033029,1722696647858,-500.0,0.00024657,9]
[334033030,1722696647867,-500.0,0.00024657,9]
[334033031,1722696647876,-500.0,0.00024657,9]
[334033032,1722696647886,-500.0,0.00024657,9]
[334033033,1722696647896,-500.0,0.00024657,9]
[334033034,1722696647906,-500.0,0.00024657,9]
[334033035,1722696647917,-500.0,0.00024657,9]
[334033036,1722696647927,-173.96422369,0.00024657,9]
[334033037,1722696647936,-500.0,0.00024657,9]
[334033038,1722696647946,-500.0,0.00024657,9]
[334033039,1722696647956,-500.0,0.00024657,9]
[334033040,1722696647965,-500.0,0.00024657,9]
[334033041,1722696647975,-173.11490575,0.00024657,9]
[334033042,1722696647984,-500.0,0.00024657,9]
[334033043,1722696647994,-280.25,0.00024657,9]
[334033044,1722696648005,-500.0,0.00024657,9]
[334033045,1722696648016,-500.0,0.00024657,9]
[334033046,1722696648026,-500.0,0.00024657,9]
[334033047,1722696648035,-500.0,0.00024657,9]
[334033048,1722696648044,-500.0,0.00024657,9]
[334033049,1722696648054,-500.0,0.00024657,9]
[334033050,1722696648063,-500.0,0.00024657,9]
[334033051,1722696648072,-500.0,0.00024657,9]
[334033052,1722696648082,-500.0,0.00024657,9]
[334033053,1722696648091,-500.0,0.00024657,9]
[334033054,1722696648100,-500.0,0.00024657,9]
[334033055,1722696648110,-500.0,0.00024657,9]
[334033056,1722696648119,-500.0,0.00024657,9]
[334033057,1722696648129,-500.0,0.00024657,9]
[334033058,1722696648138,-500.31619048,0.00024657,9]
[334033059,1722696648147,-556.29,0.00024657,9]
[334033060,1722696648156,-500.0,0.00024657,9]
[334033061,1722696648166,-500.0,0.00024657,9]
[334033062,1722696648176,-500.0,0.00024657,9]
[334033063,1722696648186,-562.34,0.00024657,9]
[334033064,1722696648195,-500.0,0.00024657,9]
[334033065,1722696648204,-500.0,0.00024657,9]
[334033066,1722696648214,-500.0,0.00024657,9]
[334033067,1722696648223,-639.11,0.00024657,9]
[334033068,1722696648234,-500.0,0.00024657,9]
[334033069,1722696648243,-500.0,0.00024657,9]
[334033070,1722696648254,-500.84110717,0.00024657,9]
[334033071,1722696648263,-500.0,0.00024657,9]
[334033072,1722696648272,-500.0,0.00024657,9]
[334033073,1722696648282,-500.0,0.00024657,9]
[334033074,1722696648291,-500.0,0.00024657,9]
[334033075,1722696648300,-433.53,0.00024657,9]
[334033076,1722696648309,-500.0,0.00024657,9]
[334033077,1722696648319,-161.38,0.00024657,9]
[334033078,1722696648328,-500.0,0.00024657,9]
[334033079,1722696648337,-447.43,0.00024657,9]
[334033080,1722696648347,-500.0,0.00024657,9]
[334033081,1722696648356,-500.0,0.00024657,9]
[334033082,1722696648366,-162.67,0.00024657,9]
[334033083,1722696648376,-500.0,0.00024657,9]
[334033084,1722696648386,-259.47,0.00024657,9]
[334033085,1722696648395,-500.0,0.00024657,9]
[334033086,1722696648405,-571.31,0.00024657,9]
[334033087,1722696648414,-500.0,0.00024657,9]
[334033088,1722696648423,-500.0,0.00024657,9]
[334033089,1722696648433,-500.0,0.00024657,9]
[334033090,1722696648442,-500.0,0.00024657,9]
[334033091,1722696648452,-158.29,0.00024657,9]
[334033092,1722696648462,-500.0,0.00024657,9]
[334033093,1722696648471,-500.0,0.00024657,9]
[334033094,1722696648480,-628.5,0.00024657,9]
[334033095,1722696648489,-500.0,0.00024657,9]
[334033096,1722696648499,-500.0,0.00024657,9]
[334033097,1722696648508,-500.0,0.00024657,9]
[334033098,1722696648517,-500.0,0.00024657,9]
[334033099,1722696648527,-500.0,0.00024657,9]
[334033100,1722696648536,-641.23,0.00024657,9]
[334033101,1722696648545,-500.0,0.00024657,9]
[334033102,1722696648555,-500.0,0.00024657,9]
[334033103,1722696648565,-206.14,0.00024657,9]
[334033104,1722696648574,-500.45394647,0.00024657,9]